fUST/lending_fUST_20250202
["ID","MTS","AMOUNT","RATE_DAILY","PERIOD"]
[351219360,1738441843727,-500.0,0.00016849,2]
[351219361,1738441843737,-500.0,0.00016849,2]
[351219362,1738441843746,-29.32085039,0.00016986,2]
[351219363,1738441843757,-500.0,0.00016986,2]
[351219364,1738441843766,-500.0,0.00016986,2]
[351219365,1738441843776,-500.0,0.00016986,2]
[351219366,1738441843788,-508.97,0.00016986,2]
[351219367,1738441843797,-309.66,0.00016986,2]
[351219368,1738441843807,-500.0,0.00016986,2]
[351219369,1738441843816,-576.66,0.00016986,2]
[351219370,1738441843825,-500.0,0.00016986,2]
[351219371,1738441843835,-151.0,0.00016986,2]
[351219372,1738441843844,-168.92510732,0.00016986,2]
[351219373,1738441843853,-500.0,0.00016986,2]
[351219374,1738441843862,-500.0,0.00016986,2]
[351219375,1738441843873,-500.0,0.00016986,2]
[351219376,1738441843883,-873.23413688,0.00016986,2]
[351219377,1738441843962,-1324.18586312,0.00016986,2]
[351219378,1738441843972,-500.0,0.00016986,2]
[351219379,1738441843982,-500.0,0.00016986,2]
[351219380,1738441843991,-500.0,0.00016986,2]
[351219381,1738441844001,-1004.76,0.00016986,2]
[351219382,1738441844011,-828.89,0.00016986,2]
[351219383,1738441844020,-500.0,0.00016986,2]
[351219384,1738441844029,-285.37907426,0.00016986,2]
[351219385,1738441844041,-500.0,0.00016986,2]
[351219386,1738441844051,-501.25,0.00016986,2]
[351219387,1738441844060,-500.0,0.00016986,2]
[351219388,1738441844070,-586.34,0.00016986,2]
[351219389,1738441844080,-618.68,0.00016986,2]
[351219390,1738441844089,-3233.45,0.00016986,2]
[351219391,1738441844099,-427.50203581,0.00016986,2]
[351219392,1738441844109,-1462.54,0.00016986,2]
[351219393,1738441844118,-500.0,0.00016986,2]
[351219394,1738441844127,-343.984768,0.00016986,2]
[351219395,1738441844136,-343.984768,0.00016986,2]
[351219396,1738441844146,-500.0,0.00016986,2]
[351219397,1738441844155,-500.0,0.00016986,2]
[351219398,1738441844165,-641.9,0.00016986,2]
[351219399,1738441844176,-500.0,0.00016986,2]
[351219400,1738441844185,-542.81041593,0.00016986,2]
[351219401,1738441844194,-5262.82,0.00016986,2]
[351219402,1738441844204,-310.78856391,0.00016986,2]
[351219403,1738441844216,-189.21143609,0.00016986,2]
[351219404,1738441844225,-758.48,0.00016986,2]
[351219405,1738441844234,-554.54,0.00016986,2]
[351219406,1738441844243,-500.0,0.00016986,2]
[351219407,1738441844253,-500.0,0.00016986,2]
[351219408,1738441844263,-258.5998767,0.00016986,2]
[351219409,1738441844293,-241.4001233,0.00016986,2]
[351219410,1738441844302,-300.78274141,0.00016986,2]
[351219411,1738441844314,-1322.23725859,0.00016986,2]
[351219412,1738441844323,-500.0,0.00016986,2]
[351219413,1738441844332,-500.0,0.00016986,2]
[351219414,1738441844341,-151.0,0.00017,2]
[351219415,1738441844350,-8635.33,0.00017,2]
[351219416,1738441844360,-9137.03,0.00017,2]
[351219417,1738441844369,-151.0,0.00017,2]
[351219418,1738441844379,-151.0,0.00017,2]
[351219419,1738441844389,-151.0,0.00017,2]
[351219420,1738441844398,-151.0,0.00017,2]
[351219421,1738441844407,-285.47308458,0.00017107,2]
[351219422,1738441844416,-500.0,0.00017123,2]
[351219423,1738441844426,-500.0,0.00017123,2]
[351219424,1738441844435,-246.55834315,0.00017123,2]
[351219425,1738441844444,-500.0,0.00017123,2]
[351219426,1738441844454,-500.0,0.00017123,2]
[351219427,1738441844463,-500.0,0.00017123,2]
[351219428,1738441844473,-500.0,0.00017123,2]
[351219429,1738441844482,-500.0,0.00017123,2]
[351219430,1738441844492,-500.0,0.00017123,2]
[351219431,1738441844501,-500.0,0.00017123,2]
[351219432,1738441844511,-241.68578211,0.00017123,2]
[351219433,1738441844520,-500.0,0.00017123,2]
[351219434,1738441844531,-500.0,0.00017123,2]
[351219435,1738441844541,-500.0,0.00017123,2]
[351219436,1738441844550,-500.0,0.00017123,2]
[351219437,1738441844561,-500.0,0.00017123,2]
[351219438,1738441844576,-507.93520715,0.00017123,2]
[351219439,1738441844596,-500.0,0.00017123,2]
[351219440,1738441844606,-500.0,0.00017123,2]
[351219441,1738441844715,-500.0,0.00017123,2]
[351219442,1738441844725,-500.0,0.00017123,2]
[351219443,1738441844735,-500.0,0.00017123,2]
[351219444,1738441844745,-151.0,0.00017123,2]
[351219445,1738441844756,-151.0,0.00017123,2]
[351219446,1738441844765,-500.0,0.00017123,2]
[351219447,1738441844775,-151.0,0.00017123,2]
[351219448,1738441844786,-500.0,0.00017123,2]
[351219449,1738441844796,-416.68859411,0.00017123,2]
[351219450,1738441844805,-500.0,0.00017123,2]
[351219451,1738441844815,-500.0,0.00017123,2]
[351219452,1738441844824,-500.0,0.00017123,2]
[351219453,1738441844834,-500.0,0.00017123,2]
[351219454,1738441844843,-500.0,0.00017123,2]
[351219455,1738441844853,-500.0,0.00017123,2]
[351219456,1738441844862,-576.66,0.00017123,2]
[351219457,1738441844873,-500.0,0.00017123,2]
[351219458,1738441844882,-500.0,0.00017123,2]
[351219459,1738441844892,-500.0,0.00017123,2]
[351219460,1738441844901,-2197.42,0.00017123,2]
[351219461,1738441844911,-500.0,0.00017123,2]
[351219462,1738441844921,-500.0,0.00017123,2]
[351219463,1738441844931,-500.0,0.00017123,2]
[351219464,1738441844940,-1004.76,0.00017123,2]
[351219465,1738441844949,-828.89,0.00017123,2]
[351219466,1738441844958,-411.21,0.00017123,2]
[351219467,1738441844967,-500.0,0.00017123,2]
[351219468,1738441844977,-501.25,0.00017123,2]
[351219469,1738441844986,-413.64,0.00017123,2]
[351219470,1738441844995,-586.34,0.00017123,2]
[351219471,1738441845005,-618.68,0.00017123,2]
[351219472,1738441845014,-3233.45,0.00017123,2]
[351219473,1738441845023,-1462.54,0.00017123,2]
[351219474,1738441845033,-500.0,0.00017123,2]
[351219475,1738441845043,-500.0,0.00017123,2]
[351219476,1738441845053,-500.0,0.00017123,2]
[351219477,1738441845062,-5262.82,0.00017123,2]
[351219478,1738441845072,-500.0,0.00017123,2]
[351219479,1738441845081,-758.48,0.00017123,2]
[351219480,1738441845091,-554.54,0.00017123,2]
[351219481,1738441845100,-500.0,0.00017123,2]
[351219482,1738441845109,-500.0,0.00017123,2]
[351219483,1738441845119,-1623.02,0.00017123,2]
[351219484,1738441845128,-500.0,0.00017123,2]
[351219485,1738441845137,-500.0,0.00017123,2]
[351219486,1738441845147,-500.0,0.0001726,2]
[351219487,1738441845156,-500.0,0.0001726,2]
[351219488,1738441845166,-500.0,0.0001726,2]
[351219489,1738441845175,-284.01972344,0.0001726,2]
[351219490,1738441845184,-500.0,0.0001726,2]
[351219491,1738441845193,-430.59382647,0.0001726,2]
[351219492,1738441845203,-439.2872338,0.0001726,2]
[351219493,1738441845212,-500.0,0.0001726,2]
[351219494,1738441845222,-396.98469269,0.0001726,2]
[351219495,1738441845232,-500.0,0.0001726,2]
[351219496,1738441845241,-500.0,0.0001726,2]
[351219497,1738441845250,-500.0,0.0001726,2]
[351219498,1738441845259,-500.0,0.0001726,2]
[351219499,1738441845268,-518.62,0.0001726,2]
[351219500,1738441845278,-500.0,0.0001726,2]
[351219501,1738441845289,-576.66,0.0001726,2]
[351219502,1738441845299,-151.0,0.0001726,2]
[351219503,1738441845308,-500.0,0.0001726,2]
[351219504,1738441845318,-500.0,0.0001726,2]
[351219505,1738441845327,-1492.09306499,0.0001726,2]
[351219506,1738441845347,-500.0,0.00016438,2]
[351219507,1738441845357,-705.32693501,0.0001726,2]
[351219508,1738441845366,-500.0,0.0001726,2]
[351219510,1738441845375,-500.0,0.0001726,2]
[351219512,1738441845384,-551.2,0.0001726,2]
[351219513,1738441845394,-941.46904437,0.0001726,2]
[351219515,1738441845406,-63.29095563,0.0001726,2]
[351219516,1738441845415,-794.17728566,0.0001726,2]
[351219521,1738441845463,-502.69622508,0.00016438,2]
[351219523,1738441845473,-500.0,0.00016438,2]
[351219524,1738441845482,-500.0,0.00016438,2]
[351219525,1738441845492,-500.0,0.00016438,2]
[351219528,1738441845501,-396.0,0.00016899,2]
[351219530,1738441845511,-34.71271434,0.0001726,2]
[351219531,1738441845520,-501.25,0.0001726,2]
[351219532,1738441845531,-586.34,0.0001726,2]
[351219533,1738441845541,-618.68,0.0001726,2]
[351219534,1738441845551,-3233.45,0.0001726,2]
[351219535,1738441845561,-726.07106058,0.0001726,2]
[351219536,1738441845573,-500.0,0.0001726,2]
[351219537,1738441845589,-236.46893942,0.0001726,2]
[351219538,1738441845598,-500.0,0.0001726,2]
[351219539,1738441845607,-7.62436196,0.0001726,2]
[351219559,1738441846063,-500.0,0.00016437,2]
[351219560,1738441846073,-500.0,0.00016437,2]
[351219561,1738441846083,-450.93796606,0.00016437,2]
[351219562,1738441846092,-500.0,0.00016437,2]
[351219563,1738441846102,-186.66408183,0.00016437,2]
[351219564,1738441846117,-500.0,0.00016437,2]
[351219565,1738441846127,-500.0,0.00016437,2]
[351219566,1738441846136,-518.41924902,0.00016437,2]
[351219567,1738441846146,-500.0,0.00016437,2]
[351219568,1738441846154,-73.22608918,0.00016438,2]
[351219569,1738441846166,-323.56061344,0.00016438,2]
[351219570,1738441846177,-113.1082459,0.00016438,2]
[351219571,1738441846187,-198.83395779,0.00016438,2]
[351219572,1738441846196,-336.36040604,0.0001726,2]
[351219574,1738441846205,-43.12279758,0.0001726,2]
[351219576,1738441846216,-300.86197042,0.0001726,2]
[351219577,1738441846226,-500.0,0.0001726,2]
[351219578,1738441846235,-492.41043164,0.0001726,2]
[351219579,1738441846251,-7.58956836,0.0001726,2]
[351219580,1738441846262,-1031.21043164,0.0001726,2]
[351219581,1738441846274,-4231.60956836,0.0001726,2]
[351219582,1738441846285,-500.0,0.0001726,2]
[351219583,1738441846295,-758.48,0.0001726,2]
[351219584,1738441846304,-554.54,0.0001726,2]
[351219585,1738441846314,-500.0,0.0001726,2]
[351219586,1738441846323,-1623.02,0.0001726,2]
[351219587,1738441846332,-301.6,0.0001726,2]
[351219588,1738441846342,-500.0,0.0001726,2]
[351219589,1738441846351,-441.0,0.000173,7]
[351219590,1738441846361,-285.47308458,0.00017314,2]
[351219591,1738441846371,-500.0,0.00017397,2]
[351219592,1738441846380,-500.0,0.00017397,2]
[351219593,1738441846390,-500.0,0.00017397,2]
[351219594,1738441846399,-151.0,0.00017397,2]
[351219595,1738441846408,-151.0,0.00017397,2]
[351219596,1738441846418,-500.0,0.00017397,2]
[351219597,1738441846427,-500.0,0.00017397,2]
[351219598,1738441846437,-500.0,0.00017397,2]
[351219599,1738441846446,-576.66,0.00017397,2]
[351219600,1738441846456,-500.0,0.00017397,2]
[351219601,1738441846465,-638.74,0.00017397,2]
[351219602,1738441846474,-2197.42,0.00017397,2]
[351219603,1738441846484,-500.0,0.00017397,2]
[351219604,1738441846493,-500.0,0.00017397,2]
[351219605,1738441846503,-1004.76,0.00017397,2]
[351219606,1738441846512,-828.89,0.00017397,2]
[351219607,1738441846521,-501.25,0.00017397,2]
[351219608,1738441846531,-586.34,0.00017397,2]
[351219609,1738441846542,-618.68,0.00017397,2]
[351219610,1738441846551,-3233.45,0.00017397,2]
[351219611,1738441846562,-1462.54,0.00017397,2]
[351219612,1738441846573,-500.0,0.00017397,2]
[351219613,1738441846582,-500.0,0.00017397,2]
[351219614,1738441846591,-500.0,0.00017397,2]
[351219615,1738441846600,-5262.82,0.00017397,2]
[351219616,1738441846611,-500.0,0.00017397,2]
[351219617,1738441846620,-151.0,0.00017397,2]
[351219618,1738441846629,-758.48,0.00017397,2]
[351219619,1738441846639,-554.54,0.00017397,2]
[351219620,1738441846649,-500.0,0.00017397,2]
[351219621,1738441846658,-1623.02,0.00017397,2]
[351219622,1738441846668,-151.0,0.00017397,2]
[351219623,1738441846677,-500.0,0.00017397,2]
[351219624,1738441846686,-420.0,0.00017492,2]
[351219625,1738441846696,-285.47308458,0.00017521,2]
[351219626,1738441846706,-500.0,0.00017534,2]
[351219627,1738441846715,-500.0,0.00017534,2]
[351219628,1738441846725,-500.0,0.00017534,2]
[351219629,1738441846734,-500.0,0.00017534,2]
[351219630,1738441846743,-151.0,0.00017534,2]
[351219631,1738441846752,-500.0,0.00017534,2]
[351219632,1738441846761,-151.0,0.00017534,2]
[351219633,1738441846771,-500.0,0.00017534,2]
[351219634,1738441846780,-576.66,0.00017534,2]
[351219635,1738441846791,-397.42,0.00017534,2]
[351219636,1738441846800,-2197.42,0.00017534,2]
[351219637,1738441846809,-536.4236984,0.00017534,2]
[351219638,1738441846819,-500.0,0.00017534,2]
[351219639,1738441846828,-1004.76,0.00017534,2]
[351219640,1738441846838,-828.89,0.00017534,2]
[351219641,1738441846848,-501.25,0.00017534,2]
[351219642,1738441846857,-586.34,0.00017534,2]
[351219643,1738441846867,-618.68,0.00017534,2]
[351219644,1738441846876,-3233.45,0.00017534,2]
[351219645,1738441846886,-1462.54,0.00017534,2]
[351219646,1738441846985,-500.0,0.00017534,2]
[351219647,1738441846995,-500.0,0.00017534,2]
[351219648,1738441847005,-5262.82,0.00017534,2]
[351219649,1738441847015,-614.05,0.00017534,2]
[351219650,1738441847025,-333.10395246,0.00017534,2]
[351219653,1738441987309,235.422287,0.00013973,2]
[351219655,1738442429338,1889.75589319,0.00015011,2]
[351219658,1738442797846,5000.0,0.00015011,2]
[351219660,1738442949340,231.785047,0.00013973,2]
[351219661,1738442989484,2023.0366104,0.00014999,2]
[351219662,1738443001470,1874.87027298,0.00015011,2]
[351219706,1738443032282,-24900.0,0.00015212,2]
[351219707,1738443032293,-176.43,0.00015311,2]
[351219708,1738443032303,-295.96,0.00015321,2]
[351219709,1738443032313,-205.613345,0.00015415,2]
[351219710,1738443032323,-610.9096329,0.00015446,2]
[351219711,1738443032333,-500.0,0.00015734,2]
[351219712,1738443032342,-280.51713881,0.00016337,2]
[351219713,1738443032352,-174.29161901,0.00016338,2]
[351219715,1738443032361,-176.43,0.00016427,2]
[351219717,1738443032371,-858.31490286,0.00016428,2]
[351219719,1738443032382,-176.43,0.00016428,2]
[351219721,1738443032391,-176.43,0.00016428,2]
[351219723,1738443032401,-385.12828622,0.00016437,2]
[351219725,1738443032411,-500.21460478,0.00016437,2]
[351219727,1738443032420,-437.990983,0.00016437,2]
[351219729,1738443032429,-321.28493406,0.00016437,2]
[351219731,1738443032439,-188.27645849,0.00016437,2]
[351219733,1738443032449,-179.12814396,0.00016437,2]
[351219735,1738443032459,-500.0,0.00016437,2]
[351219737,1738443032469,-500.0,0.00016437,2]
[351219739,1738443032479,-500.0,0.00016437,2]
[351219741,1738443032488,-537.6346148,0.00016437,2]
[351219743,1738443032497,-489.26762352,0.00016437,2]
[351219745,1738443032507,-500.0,0.00016437,2]
[351219747,1738443032516,-180.31343682,0.00016437,2]
[351219749,1738443032526,-203.84888429,0.00016437,2]
[351219751,1738443032535,-500.0,0.00016437,2]
[351219753,1738443032544,-500.0,0.00016437,2]
[351219755,1738443032554,-500.0,0.00016437,2]
[351219758,1738443032563,-500.0,0.00016438,2]
[351219759,1738443032572,-513.0595766,0.00016438,2]
[351219761,1738443032582,-334.30585657,0.00016438,2]
[351219762,1738443032591,-500.47973675,0.00016438,2]
[351219763,1738443032600,-193.58215731,0.00016438,2]
[351219764,1738443032609,-504.97585102,0.00016438,2]
[351219765,1738443032619,-500.0,0.00016438,2]
[351219766,1738443032629,-500.0,0.00016438,2]
[351219767,1738443032638,-500.0,0.00016438,2]
[351219768,1738443032647,-500.0,0.00016438,2]
[351219769,1738443032657,-500.0,0.00016438,2]
[351219770,1738443032667,-364.51767264,0.00016438,2]
[351219771,1738443032676,-228.77619763,0.00016438,2]
[351219772,1738443032685,-211.0,0.00016438,2]
[351219773,1738443032694,-500.0,0.00016438,2]
[351219774,1738443032704,-500.0,0.00016438,2]
[351219775,1738443032713,-500.0,0.00016438,2]
[351219776,1738443032722,-500.0,0.00016438,2]
[351219778,1738443032732,-641.16593298,0.00016438,2]
[351219780,1738443032741,-500.0,0.00016438,2]
[351219782,1738443032750,-503.61152882,0.00016438,2]
[351219784,1738443032760,-501.18530871,0.00016438,2]
[351219785,1738443032769,-500.0,0.00016438,2]
[351219788,1738443032777,-500.0,0.00016438,2]
[351219790,1738443032787,-500.0,0.00016438,2]
[351219792,1738443032797,-500.0,0.00016438,2]
[351219794,1738443032806,-500.0,0.00016438,2]
[351219796,1738443032815,-501.59986121,0.00016438,2]
[351219798,1738443032824,-501.7655275,0.00016438,2]
[351219800,1738443032834,-500.0,0.00016438,2]
[351219802,1738443032843,-500.0,0.00016438,2]
[351219804,1738443032852,-500.0,0.00016438,2]
[351219806,1738443032862,-500.0,0.00016438,2]
[351219808,1738443032871,-500.0,0.00016438,2]
[351219810,1738443032880,-192.05491874,0.00016438,2]
[351219812,1738443032894,-307.94508126,0.00016438,2]
[351219814,1738443032905,-504.12239812,0.00016438,2]
[351219817,1738443032915,-500.0,0.00016438,2]
[351219819,1738443032924,-500.0,0.00016438,2]
[351219821,1738443032935,-500.0,0.00016438,2]
[351219823,1738443032947,-500.0,0.00016438,2]
[351219825,1738443032957,-500.0,0.00016438,2]
[351219826,1738443032966,-500.0,0.00016438,2]
[351219829,1738443032977,-500.0,0.00016438,2]
[351219830,1738443032987,-500.0,0.00016438,2]
[351219833,1738443032997,-246.98781097,0.00016438,2]
[351219835,1738443033014,-253.01218903,0.00016438,2]
[351219837,1738443033027,-500.0,0.00016438,2]
[351219839,1738443033037,-500.0,0.00016438,2]
[351219841,1738443033046,-87.09954986,0.00016438,2]
[351219844,1738443033058,-394.44286205,0.00016438,2]
[351219846,1738443033069,-18.45758809,0.00016438,2]
[351219848,1738443033079,-293.031384,0.00016438,2]
[351219850,1738443033091,-206.968616,0.00016438,2]
[351219852,1738443033100,-500.0,0.00016438,2]
[351219854,1738443033110,-500.0,0.00016438,2]
[351219856,1738443033120,-500.0,0.00016438,2]
[351219858,1738443033131,-500.0,0.00016438,2]
[351219860,1738443033141,-96.48767411,0.00016438,2]
[351219875,1738443038199,-403.51232589,0.00016438,2]
[351219876,1738443038209,-500.0,0.00016438,2]
[351219877,1738443038218,-546.00458312,0.00016438,2]
[351219878,1738443038228,-500.0,0.00016438,2]
[351219879,1738443038237,-501.55387373,0.00016438,2]
[351219880,1738443038247,-500.0,0.00016438,2]
[351219881,1738443038256,-500.0,0.00016438,2]
[351219882,1738443038266,-500.0,0.00016438,2]
[351219883,1738443038278,-502.62098657,0.00016438,2]
[351219884,1738443038288,-500.0,0.00016438,2]
[351219885,1738443038297,-500.0,0.00016438,2]
[351219886,1738443038307,-500.0,0.00016438,2]
[351219887,1738443038317,-503.56454569,0.00016438,2]
[351219888,1738443038330,-500.0,0.00016438,2]
[351219889,1738443038353,-500.0,0.00016438,2]
[351219890,1738443038363,-500.0,0.00016438,2]
[351219891,1738443038372,-500.0,0.00016438,2]
[351219892,1738443038382,-500.0,0.00016438,2]
[351219893,1738443038391,-500.0,0.00016438,2]
[351219894,1738443038400,-500.0,0.00016438,2]
[351219895,1738443038410,-502.60717702,0.00016438,2]
[351219896,1738443038419,-292.60636989,0.00016438,2]
[351219897,1738443038428,-376.40530418,0.00016438,2]
[351219898,1738443038437,-500.0,0.00016438,2]
[351219899,1738443038446,-500.0,0.00016438,2]
[351219900,1738443038456,-500.0,0.00016438,2]
[351219901,1738443038465,-500.0,0.00016438,2]
[351219902,1738443038475,-633.57827246,0.00016438,2]
[351219903,1738443038484,-500.0,0.00016438,2]
[351219904,1738443038494,-500.0,0.00016438,2]
[351219905,1738443038504,-185.18099463,0.00016438,2]
[351219906,1738443038514,-500.0,0.00016438,2]
[351219907,1738443038524,-368.94084723,0.00016438,2]
[351219908,1738443038533,-500.0,0.00016438,2]
[351219909,1738443038543,-500.0,0.00016438,2]
[351219910,1738443038553,-251.49910826,0.00016438,2]
[351219911,1738443038563,-500.0,0.00016438,2]
[351219912,1738443038573,-500.0,0.00016438,2]
[351219913,1738443038582,-500.0,0.00016438,2]
[351219914,1738443038592,-500.0,0.00016438,2]
[351219915,1738443038601,-500.0,0.00016438,2]
[351219916,1738443038611,-500.0,0.00016438,2]
[351219917,1738443038621,-500.0,0.00016438,2]
[351219918,1738443038631,-316.52044474,0.00016438,2]
[351219919,1738443038641,-500.0,0.00016438,2]
[351219920,1738443038651,-500.0,0.00016438,2]
[351219921,1738443038659,-500.0,0.00016438,2]
[351219922,1738443038669,-500.0,0.00016438,2]
[351219923,1738443038678,-511.49611804,0.00016438,2]
[351219924,1738443038688,-510.69220395,0.00016438,2]
[351219925,1738443038697,-500.0,0.00016438,2]
[351219926,1738443038706,-500.0,0.00016438,2]
[351219927,1738443038716,-500.0,0.00016438,2]
[351219928,1738443038726,-500.0,0.00016438,2]
[351219929,1738443038735,-500.0,0.00016438,2]
[351219930,1738443038745,-500.0,0.00016438,2]
[351219931,1738443038755,-500.0,0.00016438,2]
[351219932,1738443038766,-500.0,0.00016438,2]
[351219933,1738443038775,-159.88262282,0.00016438,2]
[351219934,1738443038785,-568.48766951,0.00016438,2]
[351219935,1738443038795,-500.0,0.00016438,2]
[351219936,1738443038805,-500.0,0.00016438,2]
[351219937,1738443038814,-500.0,0.00016438,2]
[351219938,1738443038824,-500.0,0.00016438,2]
[351219939,1738443038838,-500.0,0.00016438,2]
[351219940,1738443038851,-500.0,0.00016438,2]
[351219941,1738443038861,-500.0,0.00016438,2]
[351219942,1738443038870,-500.0,0.00016438,2]
[351219943,1738443038882,-500.0,0.00016438,2]
[351219944,1738443038891,-474.28,0.00016438,2]
[351219945,1738443038901,-500.0,0.00016438,2]
[351219946,1738443038910,-500.0,0.00016438,2]
[351219947,1738443038919,-225.71449698,0.00016438,2]
[351219948,1738443038929,-500.0,0.00016438,2]
[351219949,1738443038939,-500.0,0.00016438,2]
[351219950,1738443038951,-500.0,0.00016438,2]
[351219951,1738443038960,-500.0,0.00016438,2]
[351219952,1738443038970,-500.0,0.00016438,2]
[351219953,1738443038981,-500.0,0.00016438,2]
[351219954,1738443038990,-500.0,0.00016438,2]
[351219955,1738443038999,-500.0,0.00016438,2]
[351219956,1738443039009,-500.0,0.00016438,2]
[351219957,1738443039020,-500.0,0.00016438,2]
[351219958,1738443039030,-500.0,0.00016438,2]
[351219959,1738443039040,-500.0,0.00016438,2]
[351219960,1738443039050,-500.0,0.00016438,2]
[351219961,1738443039059,-500.0,0.00016438,2]
[351219962,1738443039068,-500.0,0.00016438,2]
[351219963,1738443039078,-218.97239993,0.00016438,2]
[351219964,1738443039094,-500.0,0.00016438,2]
[351219965,1738443039103,-532.3899099,0.00016438,2]
[351219966,1738443039113,-500.0,0.00016438,2]
[351219967,1738443039122,-511.35018188,0.00016438,2]
[351219968,1738443039131,-500.0,0.00016438,2]
[351219969,1738443039140,-625.30064821,0.00016438,2]
[351219970,1738443039150,-500.0,0.00016438,2]
[351219971,1738443039159,-500.0,0.00016438,2]
[351219972,1738443039168,-500.0,0.00016438,2]
[351219973,1738443039177,-500.0,0.00016438,2]
[351219974,1738443039187,-500.0,0.00016438,2]
[351219975,1738443039196,-500.0,0.00016438,2]
[351219976,1738443039205,-500.0,0.00016438,2]
[351219977,1738443039215,-500.0,0.00016438,2]
[351219978,1738443039224,-500.0,0.00016438,2]
[351219979,1738443039359,-501.10468095,0.00016438,2]
[351219980,1738443039370,-500.0,0.00016438,2]
[351219981,1738443039380,-500.0,0.00016438,2]
[351219982,1738443039390,-500.0,0.00016438,2]
[351219983,1738443039399,-274.40048507,0.00016438,2]
[351219984,1738443039408,-500.0,0.00016438,2]
[351219985,1738443039418,-500.0,0.00016438,2]
[351219986,1738443039427,-500.0,0.00016438,2]
[351219987,1738443039437,-500.0,0.00016438,2]
[351219988,1738443039447,-500.0,0.00016438,2]
[351219989,1738443039456,-500.0,0.00016438,2]
[351219990,1738443039466,-500.0,0.00016438,2]
[351219991,1738443039475,-500.0,0.00016438,2]
[351219992,1738443039484,-500.0,0.00016438,2]
[351219993,1738443039494,-501.10011372,0.00016438,2]
[351219994,1738443039505,-500.0,0.00016438,2]
[351219995,1738443039514,-500.0,0.00016438,2]
[351219996,1738443039523,-478.37122645,0.00016438,2]
[351219997,1738443039533,-500.0,0.00016438,2]
[351219998,1738443039543,-500.0,0.00016438,2]
[351219999,1738443039553,-501.13753667,0.00016438,2]
[351220001,1738443039562,-543.25912004,0.00016438,2]
[351220002,1738443039572,-500.0,0.00016438,2]
[351220003,1738443039581,-500.0,0.00016438,2]
[351220004,1738443039596,-500.0,0.00016438,2]
[351220005,1738443039606,-500.0,0.00016438,2]
[351220006,1738443039615,-500.0,0.00016438,2]
[351220008,1738443039624,-500.0,0.00016438,2]
[351220009,1738443039634,-500.0,0.00016438,2]
[351220010,1738443039643,-500.0,0.00016438,2]
[351220011,1738443039653,-501.97482005,0.00016438,2]
[351220012,1738443039662,-514.32480114,0.00016438,2]
[351220013,1738443039672,-500.0,0.00016438,2]
[351220014,1738443039681,-566.35461217,0.00016438,2]
[351220016,1738443039690,-500.0,0.00016438,2]
[351220018,1738443039699,-500.0,0.00016438,2]
[351220019,1738443039708,-500.0,0.00016438,2]
[351220020,1738443039717,-500.0,0.00016438,2]
[351220021,1738443039727,-500.0,0.00016438,2]
[351220022,1738443039736,-500.0,0.00016438,2]
[351220023,1738443039746,-500.0,0.00016438,2]
[351220024,1738443039755,-500.0,0.00016438,2]
[351220025,1738443039765,-500.0,0.00016438,2]